bitfinex-derivatives/quotes_BTCF0:USTF0_20241223
["timestamp","ask_amount","ask_price","bid_price","bid_amount"]
[1734931503495,0.3608,95702.0,95698.0,0.04010602]
[1734931503893,0.46594851,95710.0,95701.0,0.05229]
[1734931504292,0.3608,95702.0,95701.0,0.05229]
[1734931505292,0.3608,95702.0,95700.0,0.18792572]
[1734931505494,0.3608,95702.0,95700.0,0.25056763]
[1734931505690,0.6608,95702.0,95690.0,0.31162877]
[1734931505997,0.052301,95681.0,95680.0,0.37642462]
[1734931506296,0.413101,95681.0,95680.0,0.37586462]
[1734931507098,0.413101,95681.0,95670.0,0.00056]
[1734931507288,0.413101,95681.0,95668.0,0.052308]
[1734931507683,0.413101,95681.0,95664.0,0.00156802]
[1734931507892,0.413101,95681.0,95671.0,0.052306]
[1734931508289,0.052303,95678.0,95664.0,0.00156802]
[1734931508492,0.413103,95678.0,95664.0,0.00156802]
[1734931508892,0.05231,95665.0,95662.0,0.0618]
[1734931509092,0.3608,95664.0,95662.0,0.0618]
[1734931509296,0.052311,95663.0,95662.0,0.0618]
[1734931509499,0.3608,95664.0,95662.0,0.0618]
[1734931509799,0.3608,95664.0,95662.0,0.114111]
[1734931510502,0.36161071,95678.0,95676.0,0.052303]
[1734931510699,0.36089071,95678.0,95676.0,0.052303]
[1734931511498,9.071e-05,95678.0,95676.0,0.052303]
[1734931511896,9.071e-05,95678.0,95676.0,0.053303]
[1734931512796,9.071e-05,95678.0,95677.0,0.3608]
[1734931512989,0.3616,95698.0,95688.0,0.10514851]
[1734931513189,0.3608,95698.0,95689.0,0.0627]
[1734931515499,0.3608,95705.0,95689.0,0.114996]
[1734931515697,0.3608,95705.0,95690.0,0.0625]
[1734931516100,0.3608,95705.0,95691.0,0.0587]
[1734931516602,0.413088,95705.0,95691.0,0.0587]
[1734931516800,0.413808,95705.0,95691.0,0.0587]
[1734931517394,0.413808,95705.0,95691.0,0.16384851]
[1734931517802,0.3608,95697.0,95691.0,0.16384851]
[1734931518995,0.3608,95697.0,95691.0,0.16984851]
[1734931519905,0.36152,95705.0,95695.0,0.052293]
[1734931520505,0.36152,95705.0,95695.0,0.413093]
[1734931520706,0.00072,95705.0,95695.0,0.413093]
[1734931521001,0.12488944,95711.0,95700.0,0.052291]
[1734931521306,0.12488944,95711.0,95705.0,0.052287]
[1734931521501,0.12488944,95711.0,95703.0,0.3608]
[1734931521692,0.12488944,95711.0,95710.0,0.052285]
[1734931522093,0.12488944,95725.0,95710.0,0.052285]
[1734931522300,0.12488944,95725.0,95715.0,0.10514851]
[1734931523404,0.21449342,95734.0,95715.0,0.10514851]
[1734931523405,0.12488944,95732.0,95715.0,0.10514851]
[1734931523602,0.12488944,95732.0,95722.0,0.10514851]
[1734931524503,0.12488944,95732.0,95724.0,0.052277]
[1734931524903,0.3608,95733.0,95724.0,0.052277]
[1734931526105,0.3608,95733.0,95722.0,0.10514851]
[1734931526309,0.3608,95733.0,95728.0,0.052275]
[1734931526512,0.12488944,95748.0,95732.0,0.3608]
[1734931526701,0.12488944,95748.0,95733.0,0.16884851]
[1734931527811,0.052263,95750.0,95733.0,0.16884851]
[1734931528003,0.052263,95750.0,95740.0,0.10514851]
[1734931528305,0.36152,95752.0,95740.0,0.10514851]
[1734931528510,0.3608,95752.0,95742.0,0.052267]
[1734931528900,0.3608,95752.0,95746.0,0.052265]
[1734931529617,0.3608,95752.0,95745.0,0.3608]
[1734931529808,0.12488944,95760.0,95753.0,0.052262]
[1734931530517,0.12488944,95760.0,95754.0,0.0637]
[1734931530813,0.3608,95763.0,95754.0,0.0637]
[1734931531114,0.052259,95758.0,95750.0,0.10514851]
[1734931531612,0.3608,95763.0,95750.0,0.10514851]
[1734931532307,0.3608,95763.0,95750.0,0.15741151]
[1734931532614,0.3608,95771.0,95761.0,0.052257]
[1734931532911,0.3608,95771.0,95753.0,0.46594851]
[1734931532912,0.3608,95771.0,95769.0,0.052252]
[1734931533212,0.12488944,95778.0,95770.0,0.0603]
[1734931533605,0.052244,95786.0,95770.0,0.0603]
[1734931533807,0.052245,95784.0,95770.0,0.0603]
[1734931534407,0.052245,95784.0,95777.0,0.3608]
[1734931535023,0.052245,95784.0,95774.0,0.10514851]
[1734931535505,0.052245,95784.0,95777.0,0.3608]
[1734931535907,0.052245,95784.0,95777.0,0.3618]
[1734931536314,0.00156754,95787.0,95777.0,0.3618]
[1734931537006,0.30156754,95787.0,95744.0,0.3608]
[1734931537211,0.052266,95745.0,95732.0,0.413073]
[1734931537410,0.052272,95735.0,95732.0,0.0006]
[1734931537611,0.052272,95735.0,95721.0,0.0617]
[1734931538024,0.052276,95727.0,95716.0,0.37642462]
[1734931538511,0.3608,95731.0,95716.0,0.00056]
[1734931538512,0.05228,95721.0,95716.0,0.00056]
[1734931538711,0.05228,95721.0,95710.0,0.052285]
[1734931538912,0.3608,95711.0,95710.0,0.052285]
[1734931540321,0.3608,95723.0,95694.0,0.3608]
[1734931540509,0.3608,95713.0,95712.0,0.052284]
[1734931540813,0.3608,95734.0,95733.0,0.052273]
[1734931541018,0.01568001,95773.0,95733.0,0.052273]
[1734931541019,0.12488944,95735.0,95733.0,0.052273]
[1734931542025,0.3608,95742.0,95733.0,0.052273]
[1734931542417,0.15722519,95760.0,95733.0,0.052273]
[1734931542616,0.3608,95742.0,95733.0,0.052273]
[1734931542816,0.3608,95742.0,95733.0,0.053273]
[1734931547727,0.413068,95742.0,95733.0,0.001]
[1734931547929,0.052269,95741.0,95733.0,0.001]
[1734931548432,0.3608,95734.0,95733.0,0.001]
[1734931548821,0.052271,95735.0,95733.0,0.001]
[1734931549024,0.3608,95734.0,95733.0,0.001]
[1734931551725,0.3608,95734.0,95732.0,0.052278]
[1734931551927,0.12472624,95738.0,95733.0,0.001]
[1734931552845,0.12472624,95738.0,95724.0,0.052282]
[1734931553135,0.12472624,95741.0,95732.0,0.001]
[1734931553937,0.052273,95740.0,95732.0,0.001]
[1734931554140,0.12472624,95737.0,95732.0,0.001]
[1734931554440,0.3608,95733.0,95732.0,0.001]
[1734931554633,0.3608,95733.0,95727.0,0.05228]
[1734931555236,0.48552624,95733.0,95732.0,0.001]
[1734931555736,0.48552624,95733.0,95712.0,0.064]
[1734931555935,0.3608,95723.0,95712.0,0.064]
[1734931556336,0.3608,95723.0,95712.0,0.116289]
[1734931556735,0.052288,95714.0,95704.0,0.052293]
[1734931557143,0.413088,95714.0,95704.0,0.052293]
[1734931558149,0.052291,95709.0,95696.0,0.113797]
[1734931559140,0.3608,95706.0,95704.0,0.003]
[1734931559645,0.3608,95706.0,95702.0,0.052294]
[1734931560534,0.3608,95706.0,95704.0,0.052293]
[1734931561139,0.3608,95706.0,95704.0,0.055293]
[1734931563035,0.3608,95706.0,95704.0,0.003]
[1734931564645,0.3608,95706.0,95695.0,9.337e-05]
[1734931564845,0.3608,95706.0,95704.0,0.002]
[1734931565848,0.3608,95706.0,95702.0,0.052294]
[1734931566551,0.3608,95706.0,95704.0,0.054293]
[1734931566751,0.3608,95706.0,95705.0,0.0609]
[1734931567449,0.3608,95706.0,95705.0,0.1214]
[1734931568047,0.3608,95706.0,95705.0,0.0609]
[1734931568652,0.3608,95706.0,95705.0,0.001]
[1734931569851,0.12472624,95709.0,95705.0,0.001]
[1734931570366,0.12472624,95709.0,95706.0,0.052292]
[1734931571150,0.12472624,95709.0,95708.0,0.052291]
[1734931571754,0.12472624,95713.0,95706.0,0.0603]
[1734931571957,0.12472624,95713.0,95712.0,0.052289]
[1734931572257,0.12472624,95713.0,95712.0,0.09232021]
[1734931572458,0.15639342,95725.0,95723.0,0.052283]
[1734931572953,0.51719342,95725.0,95723.0,0.052283]
[1734931573155,0.3608,95725.0,95723.0,0.052283]
[1734931573460,0.10489866,95733.0,95723.0,0.052283]
[1734931574852,0.10489866,95733.0,95717.0,0.3608]
[1734931575060,0.3608,95734.0,95724.0,0.052282]
[1734931575648,0.10489866,95740.0,95724.0,0.114482]
[1734931576457,0.0591,95744.0,95725.0,0.3608]
[1734931576761,0.0591,95744.0,95735.0,0.052276]
[1734931578962,0.0591,95744.0,95735.0,0.053276]
[1734931579168,0.0591,95744.0,95735.0,0.001]
[1734931579357,0.36156,95754.0,95742.0,0.052273]
[1734931579558,0.36156,95754.0,95742.0,0.3608]
[1734931579753,0.3608,95754.0,95749.0,0.052269]
[1734931580154,0.3608,95754.0,95752.0,0.052267]
[1734931580859,0.15639342,95762.0,95753.0,0.057]
[1734931581065,0.15639342,95762.0,95761.0,0.052262]
[1734931581459,0.3608,95769.0,95761.0,0.052262]
[1734931581662,0.3608,95769.0,95753.0,0.057]
[1734931581968,0.3608,95769.0,95763.0,0.052261]
[1734931583058,0.3608,95769.0,95763.0,0.053261]
[1734931583259,0.3608,95769.0,95763.0,0.001]
[1734931583864,0.3608,95769.0,95714.0,0.3608]
[1734931583865,0.6608,95769.0,95714.0,0.3608]
[1734931584058,0.6608,95769.0,95707.0,0.0614]
[1734931584059,0.413078,95733.0,95707.0,0.0614]
[1734931584363,0.413078,95733.0,95717.0,0.052286]
[1734931584669,0.3608,95733.0,95726.0,0.052281]
[1734931585375,0.3608,95733.0,95732.0,0.00256663]
[1734931586356,0.3608,95733.0,95732.0,0.00156663]
[1734931586561,0.3608,95733.0,95732.0,0.00856663]
[1734931588564,0.3608,95733.0,95732.0,0.06084463]
[1734931588864,0.3608,95733.0,95732.0,0.00856663]
[1734931599073,0.0614,95739.0,95732.0,0.00856663]
[1734931599266,0.0614,95739.0,95738.0,0.052275]
[1734931599661,0.4222,95739.0,95738.0,0.052275]
[1734931601666,0.4222,95739.0,95738.0,0.056275]
[1734931604379,0.4222,95739.0,95738.0,0.004]
[1734931605077,0.0614,95739.0,95738.0,0.004]
[1734931605378,0.3608,95741.0,95738.0,0.004]
[1734931606678,0.3608,95741.0,95738.0,0.003]
[1734931612286,0.052274,95740.0,95738.0,0.003]
[1734931612890,0.3608,95741.0,95738.0,0.003]
[1734931613283,0.06116538,95739.0,95738.0,0.055275]
[1734931613583,0.06116538,95739.0,95738.0,0.05086894]
[1734931613779,0.3608,95741.0,95738.0,0.05086894]
[1734931614182,0.15662287,95742.0,95740.0,0.052274]
[1734931614488,0.15662287,95742.0,95741.0,0.0599]
[1734931615275,0.3616,95749.0,95741.0,0.0599]
[1734931615479,0.3616,95749.0,95740.0,0.053274]
[1734931615480,0.3608,95749.0,95740.0,0.053274]
[1734931615987,0.3608,95749.0,95740.0,0.052274]
[1734931616188,0.008,95742.0,95741.0,0.002]
[1734931616994,0.51814287,95749.0,95741.0,0.001]
[1734931617196,0.51942287,95749.0,95741.0,0.001]
[1734931617586,0.51942287,95749.0,95740.0,0.052274]
[1734931617587,0.52242287,95749.0,95740.0,0.052274]
[1734931618296,0.3658,95749.0,95740.0,0.052274]
[1734931618794,0.3628,95749.0,95732.0,0.0601]
[1734931618994,0.008,95742.0,95741.0,0.001]
[1734931620296,0.0618,95748.0,95737.0,0.052275]
[1734931621195,0.0618,95748.0,95741.0,0.001]
[1734931621594,0.05227,95747.0,95741.0,0.001]
[1734931621799,0.05227,95747.0,95733.0,0.052277]
[1734931622093,0.0618,95748.0,95711.0,0.37566524]
[1734931622094,0.052277,95735.0,95734.0,0.04017322]
[1734931622295,0.052279,95730.0,95713.0,0.0591]
[1734931622487,0.3608,95722.0,95719.0,0.04017607]
[1734931622682,0.3608,95722.0,95720.0,0.04017802]
[1734931622896,0.3608,95722.0,95713.0,0.0591]
[1734931623195,0.3608,95722.0,95708.0,0.37566524]
[1734931623196,0.052285,95720.0,95708.0,0.37566524]
[1734931623996,0.052285,95720.0,95703.0,0.052294]
[1734931623997,0.15651012,95719.0,95703.0,0.052294]
[1734931624399,0.15651012,95719.0,95704.0,0.052293]
[1734931625104,0.20879512,95720.0,95708.0,0.052291]
[1734931625497,0.15651012,95720.0,95691.0,0.1851]
[1734931625698,0.15651012,95720.0,95714.0,0.052288]
[1734931625888,0.15651012,95720.0,95715.0,0.052287]
[1734931626094,0.0604,95721.0,95715.0,0.052287]
[1734931626399,0.52103012,95722.0,95704.0,0.3608]
[1734931626400,0.003,95720.0,95718.0,0.05385197]
[1734931627197,0.15651012,95722.0,95718.0,0.05385197]
[1734931627398,0.003,95721.0,95718.0,0.05385197]
[1734931627600,0.003,95721.0,95720.0,0.052285]
[1734931628793,0.46569866,95730.0,95720.0,0.052285]
[1734931629702,0.003,95721.0,95720.0,0.052285]
[1734931630602,0.46869866,95730.0,95720.0,0.052285]
[1734931630805,0.46869866,95730.0,95724.0,0.052282]
[1734931631397,0.3638,95730.0,95724.0,0.052282]
[1734931631701,0.3638,95730.0,95728.0,0.05228]
[1734931632193,0.3608,95730.0,95728.0,0.05228]
[1734931632698,0.3608,95730.0,95719.0,0.1829]
[1734931632894,0.46569866,95730.0,95723.0,0.052283]
[1734931633099,0.47069866,95730.0,95723.0,0.052283]
[1734931633299,0.47069866,95730.0,95724.0,0.001]
[1734931633904,0.46869866,95730.0,95723.0,0.052283]
[1734931634203,0.3638,95730.0,95724.0,0.052282]
[1734931634594,0.3638,95730.0,95724.0,0.053282]
[1734931635004,0.3638,95730.0,95724.0,0.052282]
[1734931635508,0.3648,95730.0,95724.0,0.052282]
[1734931635799,0.3648,95730.0,95718.0,0.00156697]
[1734931636005,0.3608,95721.0,95718.0,0.00156697]
[1734931636303,0.052285,95720.0,95718.0,0.00156697]
[1734931636493,0.113085,95720.0,95718.0,0.00156697]
[1734931638493,0.0608,95720.0,95676.0,0.00339451]
[1734931638702,0.052298,95696.0,95684.0,0.04008768]
[1734931639608,0.052298,95696.0,95684.0,0.052304]
[1734931639901,0.052298,95696.0,95695.0,0.00209337]
[1734931640612,0.14608778,95696.0,95695.0,9.337e-05]
[1734931640797,0.14608778,95696.0,95695.0,0.00209337]
[1734931640993,0.45458978,95696.0,95681.0,0.00156769]
[1734931641306,0.3608,95682.0,95681.0,0.00156769]
[1734931641894,0.3608,95682.0,95660.0,0.0625]
[1734931641895,0.052307,95679.0,95643.0,0.3608]
[1734931642098,0.3608,95657.0,95656.0,0.05232]
[1734931643202,0.3608,95657.0,95656.0,0.05632]
[1734931643507,0.3608,95657.0,95656.0,0.004]
[1734931644203,0.3618,95657.0,95656.0,0.013]
[1734931645005,0.3608,95657.0,95656.0,0.004]
[1734931645311,0.3618,95657.0,95644.0,0.1196]
[1734931645512,0.3608,95649.0,95644.0,0.1196]
[1734931646302,0.3608,95649.0,95634.0,0.052332]
[1734931646499,0.3608,95649.0,95626.0,0.1834]
[1734931646800,0.3608,95649.0,95644.0,0.004]
[1734931647002,9.069e-05,95648.0,95644.0,0.004]
[1734931647219,0.3608,95645.0,95626.0,0.1231]
[1734931647408,0.052327,95643.0,95625.0,0.05244739]
[1734931647705,0.052327,95643.0,95627.0,0.052336]
[1734931647913,0.052327,95643.0,95639.0,0.0075684]
[1734931648299,0.36152,95645.0,95639.0,0.0075684]
[1734931648300,0.36152,95645.0,95639.0,0.0015684]
[1734931648505,9.069e-05,95648.0,95644.0,0.3608]
[1734931648706,9.069e-05,95648.0,95647.0,0.052325]
[1734931650512,9.069e-05,95648.0,95647.0,0.054325]
[1734931653112,0.00409069,95648.0,95647.0,0.052325]
[1734931654917,0.00709069,95648.0,95647.0,0.052325]
[1734931655910,0.00709069,95648.0,95640.0,0.0601]
[1734931656117,0.00709069,95648.0,95639.0,0.0015684]
[1734931656306,0.3608,95643.0,95639.0,0.0015684]
[1734931657718,0.001,95643.0,95639.0,0.0015684]
[1734931658423,0.001,95643.0,95630.0,0.10489866]
[1734931658622,0.001,95643.0,95631.0,0.052333]
[1734931659124,0.005,95643.0,95631.0,0.052333]
[1734931659325,0.005,95643.0,95622.0,0.3608]
[1734931659326,0.014,95643.0,95639.0,0.001]
[1734931659816,0.01,95643.0,95631.0,0.052333]
[1734931660017,0.009,95643.0,95631.0,0.052333]
[1734931660220,0.004,95643.0,95631.0,0.052333]
[1734931660432,0.012,95643.0,95639.0,0.001]
[1734931660625,0.3608,95640.0,95639.0,0.001]
[1734931660925,0.3608,95640.0,95631.0,0.052333]
[1734931661127,0.3608,95640.0,95622.0,0.3608]
[1734931661913,0.3608,95640.0,95636.0,0.05233]
[1734931662118,0.009,95643.0,95636.0,0.05233]
[1734931662523,0.013,95643.0,95639.0,0.001]
[1734931662718,0.014,95643.0,95639.0,0.001]
[1734931662919,0.014,95643.0,95630.0,0.052334]
[1734931663134,0.014,95643.0,95636.0,0.001]
[1734931663135,0.11189866,95640.0,95636.0,0.001]
[1734931663317,0.007,95640.0,95636.0,0.001]
[1734931663524,0.005,95643.0,95637.0,0.05233]
[1734931663719,0.014,95643.0,95639.0,0.001]
[1734931664128,0.005,95643.0,95624.0,0.3608]
[1734931664426,0.012,95640.0,95636.0,0.001]
[1734931665527,0.09378978,95639.0,95636.0,0.001]
[1734931665725,0.09378978,95639.0,95630.0,0.052334]
[1734931665926,0.09378978,95639.0,95631.0,0.052333]
[1734931666128,0.09378978,95639.0,95633.0,0.052332]
[1734931666434,0.09378978,95639.0,95636.0,0.001]
[1734931666435,0.12505305,95639.0,95636.0,0.001]
[1734931666929,0.13505305,95639.0,95633.0,0.052332]
[1734931667524,0.12505305,95638.0,95636.0,0.001]
[1734931668827,0.16851012,95639.0,95636.0,0.001]
[1734931669028,0.16651012,95639.0,95633.0,0.001]
[1734931669235,0.3608,95636.0,95633.0,0.001]
[1734931669622,0.3608,95636.0,95632.0,0.052332]
[1734931669828,0.15651012,95635.0,95625.0,0.00011139]
[1734931670028,0.15651012,95635.0,95631.0,0.052333]
[1734931670223,0.15651012,95635.0,95625.0,0.00011139]
[1734931670224,0.15651012,95635.0,95633.0,0.001]
[1734931670733,0.15651012,95635.0,95632.0,0.052333]
[1734931671231,0.15651012,95635.0,95634.0,0.052332]
[1734931671534,0.00572,95636.0,95634.0,0.052332]
[1734931671723,0.005,95636.0,95634.0,0.052332]
[1734931672124,0.009,95636.0,95634.0,0.052332]
[1734931672829,0.009,95636.0,95625.0,0.00011139]
[1734931672830,0.3608,95635.0,95630.0,0.052334]
[1734931673036,0.42790448,95635.0,95633.0,0.001]
[1734931673631,0.06110448,95635.0,95634.0,0.001]
[1734931674024,0.003,95635.0,95634.0,0.001]
[1734931674228,0.009,95635.0,95633.0,0.053332]
[1734931675235,0.19548351,95635.0,95633.0,0.053332]
[1734931675533,0.19548351,95635.0,95634.0,0.04001578]
[1734931675929,0.19248351,95635.0,95633.0,0.053332]
[1734931676128,0.25759018,95635.0,95634.0,0.04001462]
[1734931676324,0.25759018,95635.0,95633.0,0.053332]
[1734931676529,0.25159018,95635.0,95634.0,0.04103998]
[1734931676734,0.25759018,95635.0,95634.0,0.04103998]
[1734931677230,0.06510667,95635.0,95634.0,0.04003998]
[1734931677429,0.06710667,95635.0,95634.0,0.04003998]
[1734931677731,0.07110667,95635.0,95634.0,0.04003998]
[1734931677940,0.07110667,95635.0,95634.0,0.04103998]
[1734931682234,0.13090667,95635.0,95634.0,0.04103998]
[1734931682435,0.13090667,95635.0,95634.0,0.001]
[1734931685030,0.13090667,95635.0,95634.0,0.053332]
[1734931685238,0.07110667,95635.0,95634.0,0.053332]
[1734931687635,0.07110667,95635.0,95634.0,0.09342373]
[1734931687940,0.07110667,95635.0,95634.0,0.053332]
[1734931690537,0.43190667,95635.0,95634.0,0.053332]
[1734931691737,0.43190667,95635.0,95634.0,0.001]
[1734931691945,0.3708,95635.0,95634.0,0.001]
[1734931693547,9.069e-05,95648.0,95634.0,0.04111325]
[1734931693744,9.069e-05,95648.0,95647.0,0.052325]
[1734931693943,9.069e-05,95648.0,95647.0,0.09243825]
[1734931694341,0.18834088,95648.0,95647.0,0.09243825]
[1734931695145,0.19234088,95648.0,95647.0,0.09243825]
[1734931695753,0.00709069,95648.0,95647.0,0.09343825]
[1734931695936,0.01409069,95648.0,95647.0,0.09443825]
[1734931696545,0.12543256,95651.0,95647.0,0.04211325]
[1734931696747,0.12543256,95651.0,95650.0,0.052323]
[1734931696944,0.12543256,95651.0,95650.0,0.09243625]
[1734931697150,0.09397844,95651.0,95650.0,0.09243625]
[1734931698240,0.10489866,95660.0,95650.0,0.09243625]
[1734931698440,0.005,95651.0,95650.0,0.052323]
[1734931699341,0.005,95651.0,95650.0,0.053323]
[1734931702349,0.005,95651.0,95650.0,0.09335918]
[1734931702850,0.005,95651.0,95650.0,0.053323]
[1734931704854,0.005,95651.0,95650.0,0.09335572]
[1734931705545,0.1567907,95671.0,95669.0,0.052312]
[1734931705845,0.1567907,95676.0,95670.0,0.40082453]
[1734931706055,0.1567907,95676.0,95675.0,0.052309]
[1734931707249,0.36152,95691.0,95679.0,0.052307]
[1734931707451,0.36152,95691.0,95678.0,0.10489866]
[1734931707651,0.36152,95691.0,95686.0,0.052303]
[1734931708541,0.00256841,95688.0,95686.0,0.052303]
[1734931709144,0.00256841,95688.0,95686.0,0.053303]
[1734931709346,0.00156841,95688.0,95686.0,0.053303]
[1734931710150,0.36152,95691.0,95686.0,0.001]
[1734931710358,0.3608,95691.0,95690.0,0.052301]
[1734931711059,0.0646,95708.0,95695.0,0.052298]
[1734931711455,0.4237,95699.0,95698.0,0.052297]
[1734931711758,0.0629,95699.0,95698.0,0.052297]
[1734931712354,0.3608,95709.0,95706.0,0.052292]
[1734931712856,0.3608,95709.0,95708.0,0.052291]
[1734931714162,0.1301,95718.0,95708.0,0.052291]
[1734931714551,0.1301,95718.0,95708.0,0.15718966]
[1734931714960,0.001,95709.0,95708.0,0.15718966]
[1734931715156,0.001,95709.0,95708.0,0.052291]
[1734931715753,0.1311,95718.0,95708.0,0.052291]
[1734931716157,0.3608,95714.0,95708.0,0.15718966]
[1734931716861,0.3608,95714.0,95708.0,0.10489866]
[1734931717059,0.1311,95718.0,95708.0,0.10489866]
[1734931717358,0.3608,95716.0,95708.0,0.10489866]
[1734931717562,0.001,95709.0,95708.0,0.10489866]
[1734931717855,0.001,95709.0,95678.0,0.00156769]
[1734931717856,0.001,95709.0,95691.0,0.0523]
[1734931718160,0.3608,95705.0,95699.0,0.10489866]
[1734931718356,0.0605,95704.0,95699.0,0.10489866]
[1734931718845,0.0605,95704.0,95694.0,0.052299]
[1734931719051,0.3608,95697.0,95694.0,0.052299]
[1734931719353,0.1271,95696.0,95694.0,0.052299]
[1734931720467,0.1271,95696.0,95694.0,0.053299]
[1734931721659,0.1281,95696.0,95694.0,0.053299]
[1734931722049,0.1281,95696.0,95694.0,0.001]
[1734931722249,0.4281,95696.0,95678.0,0.00156769]
[1734931722457,0.3608,95679.0,95678.0,0.00156769]
[1734931722760,0.3608,95687.0,95678.0,0.00156769]
[1734931723151,0.3608,95687.0,95686.0,0.052303]
[1734931723761,0.1281,95696.0,95692.0,0.0523]
[1734931724254,0.1271,95696.0,95692.0,0.0523]
[1734931724462,0.1281,95696.0,95692.0,0.0523]
[1734931724765,0.1281,95696.0,95694.0,0.052299]
[1734931725462,0.1301,95696.0,95694.0,0.052299]
[1734931725958,0.1281,95696.0,95694.0,0.052299]
[1734931726163,0.1301,95696.0,95694.0,0.053299]
[1734931726366,0.1301,95696.0,95694.0,0.001]
[1734931726766,0.1301,95696.0,95682.0,0.3608]
[1734931727069,0.3608,95688.0,95678.0,0.00156769]
[1734931728561,0.3618,95688.0,95683.0,0.052305]
[1734931729166,0.3638,95688.0,95683.0,0.052305]
[1734931729569,0.3638,95688.0,95686.0,0.052303]
[1734931730269,0.3648,95688.0,95686.0,0.052303]
[1734931730659,0.003,95688.0,95686.0,0.052303]
[1734931730861,0.004,95688.0,95686.0,0.052303]
[1734931731859,0.003,95688.0,95686.0,0.053303]
[1734931732265,0.003,95688.0,95686.0,0.052303]
[1734931732266,0.001,95688.0,95686.0,0.052303]
[1734931732571,0.003,95688.0,95686.0,0.052303]
[1734931735365,0.001,95688.0,95686.0,0.052303]
[1734931735565,0.003,95688.0,95686.0,0.052303]
[1734931736163,0.003,95688.0,95678.0,0.00156769]
[1734931736466,0.003,95688.0,95679.0,0.052307]
[1734931736667,0.003,95688.0,95678.0,0.00156769]
[1734931737967,0.001,95688.0,95681.0,0.052306]
[1734931738170,0.003,95688.0,95681.0,0.052306]
[1734931738560,0.001,95688.0,95681.0,0.052306]
[1734931738765,0.003,95688.0,95678.0,0.00256769]
[1734931739071,0.003,95688.0,95680.0,0.3608]
[1734931739267,0.003,95688.0,95681.0,0.04101488]
[1734931739574,0.003,95688.0,95682.0,0.04001488]
[1734931739966,0.003,95688.0,95686.0,0.052303]
[1734931740372,0.003,95688.0,95687.0,0.04005618]
[1734931740963,0.002,95688.0,95687.0,0.04005618]
[1734931741273,0.003,95688.0,95687.0,0.04005618]
[1734931741663,0.001,95688.0,95687.0,0.04005618]
[1734931741863,0.003,95688.0,95687.0,0.15265818]
[1734931742064,0.003,95688.0,95687.0,0.09235818]
[1734931742266,0.003,95688.0,95687.0,0.052302]
[1734931742572,0.003,95688.0,95687.0,0.09236101]
[1734931742766,0.003,95688.0,95687.0,0.09235662]
[1734931742975,0.003,95688.0,95687.0,0.052302]
[1734931743872,0.003,95688.0,95687.0,0.09235751]
[1734931744575,0.001,95688.0,95687.0,0.09235751]
[1734931744778,0.003,95688.0,95687.0,0.09235751]
[1734931745683,0.003,95688.0,95687.0,0.09236783]
[1734931746767,0.002,95688.0,95687.0,0.09236783]
[1734931747072,0.003,95688.0,95687.0,0.052302]
[1734931749664,0.4273,95696.0,95695.0,0.052298]
[1734931749871,0.5175907,95705.0,95704.0,0.052293]
[1734931749872,0.5183507,95705.0,95704.0,0.052293]
[1734931750065,0.5175907,95705.0,95704.0,0.052293]
[1734931750487,0.3608,95705.0,95704.0,0.09238514]
[1734931750976,0.3618,95705.0,95704.0,0.09238514]
[1734931751381,0.3618,95705.0,95704.0,0.04009214]
[1734931751769,0.3618,95705.0,95697.0,0.052297]
[1734931751973,0.3618,95705.0,95704.0,0.001]
[1734931752875,0.3618,95705.0,95700.0,0.3125348]
[1734931753077,0.3618,95705.0,95701.0,0.04010838]
[1734931753378,0.3618,95705.0,95704.0,0.052293]
[1734931753379,0.3608,95705.0,95704.0,0.052293]
[1734931753575,0.3608,95705.0,95697.0,0.001]
[1734931753783,0.3608,95705.0,95698.0,0.04010756]
[1734931754467,0.3608,95705.0,95697.0,0.001]
[1734931754468,0.0665,95704.0,95697.0,0.001]
[1734931754667,0.0665,95704.0,95691.0,0.3125348]
[1734931754870,0.0665,95704.0,95692.0,0.04010322]
[1734931755067,0.3608,95697.0,95692.0,0.04010322]
[1734931755678,0.3608,95706.0,95694.0,0.052298]
[1734931755869,0.3608,95706.0,95698.0,0.001]
[1734931756075,0.3608,95706.0,95704.0,0.052293]
[1734931758381,0.0643,95713.0,95704.0,0.053293]
[1734931758579,0.0611,95715.0,95704.0,0.001]
[1734931758781,0.0611,95715.0,95707.0,0.052291]
[1734931758984,0.0611,95715.0,95708.0,0.04009994]
[1734931759976,0.0611,95715.0,95707.0,0.052291]
[1734931761672,0.0611,95715.0,95711.0,0.052289]
[1734931765289,0.0611,95715.0,95702.0,0.3608]
[1734931765486,0.0611,95715.0,95712.0,0.052288]
[1734931765681,0.0611,95715.0,95711.0,0.052289]
[1734931766484,0.0611,95715.0,95714.0,0.052288]
[1734931766690,0.0611,95715.0,95708.0,0.052291]
[1734931766881,0.0655,95714.0,95708.0,0.052291]
[1734931767780,0.0655,95714.0,95702.0,0.3608]
[1734931768893,0.0655,95714.0,95709.0,0.05229]
[1734931769080,0.0655,95714.0,95711.0,0.052289]
[1734931769284,0.0655,95714.0,95712.0,0.04008683]
[1734931769787,0.0655,95714.0,95710.0,0.052289]
[1734931770390,0.0655,95714.0,95702.0,0.3608]
[1734931770591,0.0655,95714.0,95712.0,0.052288]
[1734931771583,0.0655,95714.0,95712.0,0.056288]
[1734931772182,0.0655,95714.0,95712.0,0.065288]
[1734931773191,0.0655,95714.0,95712.0,0.013]
[1734931775593,0.12584261,95717.0,95715.0,0.052287]
[1734931775796,0.12512261,95717.0,95715.0,0.052287]
[1734931776383,0.00156769,95718.0,95717.0,0.052286]
[1734931777180,0.00156769,95718.0,95717.0,0.09238848]
[1734931777684,0.00156769,95718.0,95717.0,0.09538848]